bitfinex/quotes_ETHUSD_20241009
["timestamp","ask_amount","ask_price","bid_price","bid_amount"]
[1728462256911,0.06845721,2436.2,2436.0,4.10498]
[1728462257132,1.8127597,2436.3,2436.0,4.10498]
[1728462257334,0.06845721,2436.2,2435.9,4.10513]
[1728462257508,1.8127597,2436.3,2435.9,8.21028]
[1728462257840,0.06845721,2436.2,2435.9,4.10513]
[1728462258208,1.8127597,2436.3,2435.9,4.10513]
[1728462258410,0.06841281,2436.1,2435.9,4.10513]
[1728462258617,1.8127597,2436.3,2435.9,8.2103]
[1728462258844,0.06836839,2436.0,2435.9,4.10513]
[1728462259302,1.8127597,2436.3,2435.9,8.2103]
[1728462259503,0.06845721,2436.2,2435.9,8.21029]
[1728462259704,1.8127597,2436.3,2435.9,8.21029]
[1728462260043,0.06845721,2436.2,2436.0,4.10504]
[1728462260343,1.8127597,2436.3,2436.0,4.10504]
[1728462260643,0.06841281,2436.1,2436.0,4.10504]
[1728462260859,1.8127597,2436.3,2436.1,4.10489]
[1728462260998,1.7500597,2436.3,2436.1,4.10489]
[1728462262400,1.7500597,2436.4,2436.1,4.10489]
[1728462262647,1.7500597,2436.4,2436.1,8.20963]
[1728462262949,1.7500597,2436.4,2436.1,4.10481]
[1728462264504,1.7500597,2436.4,2436.0,0.8199]
[1728462264716,1.7500597,2436.4,2436.0,4.92494]
[1728462266344,1.7500597,2436.4,2436.0,4.10504]
[1728462266663,1.8127597,2436.2,2436.0,4.10504]
[1728462266991,1.8127597,2436.2,2436.0,4.10508]
[1728462267265,0.0627,2436.2,2436.0,4.10508]
[1728462268226,1.7500597,2436.3,2435.9,4.10509]
[1728462268423,1.7500597,2436.3,2435.9,8.21026]
[1728462268928,1.7500597,2436.3,2436.0,4.10507]
[1728462269129,0.0627,2436.4,2436.0,4.10507]
[1728462269329,1.7500597,2436.3,2436.0,4.10507]
[1728462271431,1.7500597,2436.3,2435.9,4.10509]
[1728462271631,1.7500597,2436.3,2435.9,8.21026]
[1728462273576,0.0685981,2436.2,2435.9,8.21026]
[1728462273870,1.7500597,2436.3,2435.9,9.108536]
[1728462274072,0.06855369,2436.1,2435.9,8.21026]
[1728462274277,1.7500597,2436.3,2435.9,4.10509]
[1728462274776,0.0685981,2436.2,2435.9,8.21027]
[1728462274977,1.7500597,2436.3,2435.9,8.21027]
[1728462275176,0.06855369,2436.1,2435.9,8.21027]
[1728462275481,0.06855369,2436.1,2435.9,8.21026]
[1728462275634,1.7500597,2436.3,2435.9,8.21026]
[1728462275833,0.06850928,2436.0,2435.9,8.21026]
[1728462276029,1.7500597,2436.3,2435.9,8.21026]
[1728462276230,0.06850928,2436.0,2435.9,8.21026]
[1728462276477,1.7500597,2436.3,2435.9,8.21026]
[1728462276633,0.06850928,2436.0,2435.9,8.21026]
[1728462277339,1.7500597,2436.3,2435.9,8.21026]
[1728462277674,0.0685981,2436.2,2435.9,4.10509]
[1728462278048,2.51334431,2436.3,2435.9,4.10509]
[1728462278465,0.0685981,2436.2,2435.9,8.21026]
[1728462278777,1.7500597,2436.3,2435.9,8.21026]
[1728462278965,0.06855369,2436.1,2435.9,8.21026]
[1728462279286,1.7500597,2436.3,2435.9,8.21026]
[1728462279489,0.06850928,2436.0,2435.9,4.10509]
[1728462279647,1.7500597,2436.3,2435.9,4.10509]
[1728462279648,1.7500597,2436.3,2435.9,8.21024]
[1728462279848,0.06850928,2436.0,2435.9,4.10509]
[1728462280059,1.7500597,2436.3,2435.9,8.21026]
[1728462280266,0.06850928,2436.0,2435.9,8.21026]
[1728462280444,1.7500597,2436.3,2435.9,8.21026]
[1728462280649,0.06850928,2436.0,2435.9,4.10509]
[1728462280861,1.7500597,2436.3,2435.9,4.10509]
[1728462281061,2.51334431,2436.3,2435.9,4.10509]
[1728462281301,0.0686052,2436.2,2435.9,4.10509]
[1728462281662,1.7500597,2436.3,2435.9,4.10509]
[1728462281897,0.06624486,2436.1,2435.9,4.10509]
[1728462282205,0.06620045,2436.0,2435.9,4.10509]
[1728462282374,1.7500597,2436.3,2435.9,4.10509]
[1728462282579,0.06620045,2436.0,2435.9,4.10509]
[1728462282792,1.7500597,2436.3,2435.9,4.10509]
[1728462283005,0.06620045,2436.0,2435.9,4.10509]
[1728462283302,1.7500597,2436.3,2435.9,4.10509]
[1728462283464,0.06620045,2436.0,2435.9,4.10509]
[1728462283659,1.7500597,2436.1,2435.9,4.10509]
[1728462283984,0.06619809,2436.0,2435.9,4.10509]
[1728462285313,0.06619809,2436.0,2435.8,4.87791]
[1728462286101,0.06619809,2436.0,2435.8,4.10541]
[1728462288827,0.06619809,2436.0,2435.8,4.10534]
[1728462290690,1.7500597,2435.9,2435.8,4.10534]
[1728462291118,1.81607173,2435.9,2435.8,4.10534]
[1728462295319,0.06601203,2435.9,2435.8,4.10534]
[1728462295653,1.7500597,2435.9,2435.8,4.10534]
[1728462295871,1.8127597,2436.1,2435.9,4.10524]
[1728462296074,1.71566635,2436.3,2436.0,4.85579]
[1728462296379,0.0627,2436.5,2436.0,4.85579]
[1728462296380,3.52842605,2436.5,2436.0,4.85579]
[1728462296673,1.7500597,2436.3,2436.0,4.85579]
[1728462296854,1.7500597,2436.1,2435.9,4.10515]
[1728462297470,0.0627,2436.2,2436.0,4.10509]
[1728462297673,1.7500597,2436.3,2436.0,4.10509]
[1728462297971,2.84453822,2436.3,2436.0,4.105]
[1728462298130,1.7500597,2436.3,2436.0,4.105]
[1728462299520,1.77836635,2436.4,2436.0,4.105]
[1728462299726,1.7500597,2436.3,2436.0,4.105]
[1728462299936,1.7500597,2436.3,2436.1,4.10491]
[1728462300558,1.8127597,2436.4,2436.1,4.10491]
[1728462301073,1.8127597,2436.4,2436.0,4.105]
[1728462301074,3.65518642,2436.4,2436.0,4.105]
[1728462301241,1.7500597,2436.2,2436.0,4.105]
[1728462301574,1.7500597,2436.2,2436.0,4.10499]
[1728462303470,0.06615519,2436.1,2436.0,4.10499]
[1728462303850,0.06615519,2436.1,2435.8,4.87781]
[1728462304094,0.06615519,2436.1,2435.9,4.10521]
[1728462305067,0.06615519,2436.1,2435.9,4.10515]
[1728462306740,0.06615519,2436.1,2435.8,0.7725]
[1728462306941,0.06615519,2436.1,2435.8,4.87778]
[1728462307649,0.06615519,2436.1,2435.9,4.10523]
[1728462312893,0.06615519,2436.1,2436.0,4.10509]
[1728462313104,9.19566635,2436.6,2436.4,4.10441]
[1728462313255,7.48,2436.6,2436.4,8.98953]
[1728462313459,7.48,2436.6,2436.4,5.79227116]
[1728462313890,1.71566635,2436.9,2436.4,5.79227116]
[1728462314059,1.71566635,2436.9,2436.4,4.88511]
[1728462314498,1.7500597,2436.8,2436.4,4.88511]
[1728462315583,1.7500597,2436.8,2436.5,0.08207708]
[1728462315783,1.7500597,2436.8,2436.5,4.10424]
[1728462316107,1.7500597,2436.8,2436.4,4.88511]
[1728462316265,1.7500597,2436.8,2436.5,0.08207827]
[1728462316597,1.7500597,2436.8,2436.5,4.18623827]
[1728462317969,1.77836635,2437.0,2436.5,5.0933691]
[1728462318172,1.8127597,2437.0,2436.6,4.10396]
[1728462318428,1.71566635,2437.1,2436.7,4.10387]
[1728462318710,0.05435361,2436.9,2436.8,4.93750523]
[1728462318926,8.70939565,2437.4,2436.9,4.10355]
[1728462319069,12.81221565,2437.4,2436.9,4.10355]
[1728462319265,1.7500597,2437.2,2436.8,0.83376522]
[1728462319529,4.10293,2437.3,2436.5,0.90713083]
[1728462319530,1.7500597,2437.0,2436.5,4.10414]
[1728462319674,1.7500597,2436.8,2436.5,4.93644]
[1728462320104,1.7500597,2436.6,2436.5,0.8323]
[1728462320313,1.7500597,2436.6,2436.3,4.10447]
[1728462320314,1.7500597,2436.6,2436.3,4.93017]
[1728462321199,1.7500597,2436.6,2436.3,9.03465]
[1728462323613,1.7500597,2436.6,2436.4,4.10438]
[1728462324502,1.7500597,2436.6,2436.3,4.93017]
[1728462324705,1.7500597,2436.6,2436.1,4.1048]
[1728462324910,1.7500597,2436.6,2436.1,9.01773]
[1728462325207,1.7500597,2436.4,2436.2,4.10473]
[1728462326708,1.7500597,2436.4,2436.1,4.9129]
[1728462327294,1.8127597,2436.4,2435.9,4.89158]
[1728462327476,1.8127597,2436.4,2436.1,4.10491]
[1728462328195,2.87402747,2436.4,2435.9,4.89156]
[1728462328412,2.87402747,2436.4,2435.9,8.9967]
[1728462328618,6.97844747,2436.4,2435.9,4.89154]
[1728462329502,6.97844747,2436.4,2435.9,8.9967]
[1728462331807,1.12396777,2436.4,2436.0,4.10507]
[1728462332004,2.87402747,2436.4,2436.0,4.10507]
[1728462332619,2.87402747,2436.4,2436.1,4.10486]
[1728462333121,2.87402747,2436.4,2436.0,8.21007]
[1728462333414,2.87402747,2436.4,2436.0,4.105]
[1728462333731,0.0522152,2436.3,2436.0,4.105]
[1728462338029,0.0522152,2436.3,2436.0,8.21]
[1728462338315,0.0522152,2436.3,2436.0,4.105]
[1728462338621,1.7500597,2436.2,2435.9,4.10518]
[1728462339121,0.05203568,2436.1,2435.9,4.10518]
[1728462340519,0.05203568,2436.1,2436.0,4.10509]
[1728462342341,0.05203568,2436.1,2435.9,4.10525]
[1728462343894,0.05203568,2436.1,2435.8,4.10531]
[1728462344095,0.05203568,2436.1,2435.9,4.10516]
[1728462345111,0.05203568,2436.1,2435.8,4.10529]
[1728462345334,0.05203568,2436.1,2435.8,8.21062]
[1728462345545,0.05203568,2436.1,2435.8,4.10529]
[1728462345698,0.05203568,2436.1,2435.8,8.2106]
[1728462347254,0.05203568,2436.1,2435.9,4.10522]
[1728462347544,0.05203568,2436.1,2435.8,8.21061]
[1728462347900,0.05203568,2436.1,2435.8,4.10529]
[1728462348097,0.05203568,2436.1,2435.9,4.10522]
[1728462348294,0.0627,2436.0,2435.8,8.21061]
[1728462348508,1.86459186,2436.0,2435.8,8.21061]
[1728462348847,1.80189186,2436.0,2435.8,8.21061]
[1728462349946,1.80189186,2436.0,2435.9,4.10525]
[1728462350641,1.80189186,2436.0,2435.8,8.21057]
[1728462351034,1.80189186,2436.0,2435.9,4.10525]
[1728462351534,0.05183216,2436.0,2435.9,4.10525]
[1728462352252,1.8127597,2436.2,2435.9,4.10525]
[1728462352416,0.05183216,2436.0,2435.9,4.10525]
[1728462352620,2.40448667,2436.2,2435.8,8.21061]
[1728462352814,0.05183216,2436.0,2435.9,4.10513]
[1728462353019,1.8127597,2436.2,2435.9,4.10513]
[1728462353273,0.05187658,2436.1,2435.9,4.10513]
[1728462354111,0.05187658,2436.1,2436.0,4.10509]
[1728462356483,0.05187658,2436.1,2435.9,4.10513]
[1728462359032,0.05187658,2436.1,2435.9,8.2103]
[1728462359373,1.7500597,2436.0,2435.6,0.1]
[1728462359538,0.0627,2435.9,2435.7,4.10551]
[1728462359747,0.1144685,2435.9,2435.6,4.20564]
[1728462360138,0.1144685,2435.9,2435.6,8.31132]
[1728462360337,0.1144685,2435.9,2435.6,4.20564]
[1728462361048,0.1144685,2435.9,2435.6,8.31129]
[1728462361049,1.7500597,2435.8,2435.6,8.31129]
[1728462361364,1.80178376,2435.8,2435.6,8.31129]
[1728462361825,1.80178376,2435.8,2435.7,4.10559]
[1728462362029,0.05172406,2435.8,2435.7,4.10559]
[1728462363035,0.05172406,2435.8,2435.7,4.93059]
[1728462363229,1.7500597,2436.0,2435.7,4.93059]
[1728462363432,0.05176102,2435.9,2435.7,4.93059]
[1728462364883,0.05176102,2435.9,2435.7,0.825]
[1728462365172,0.0627,2436.2,2435.9,4.1052]
[1728462365376,1.7500597,2436.3,2435.9,4.1052]
[1728462365942,9.19566635,2436.5,2435.9,4.1052]
[1728462365943,7.48,2436.5,2436.1,4.1049]
[1728462366156,3.300559,2436.5,2436.1,4.1049]
[1728462367230,1.7500597,2436.5,2436.2,4.10461]
[1728462367989,0.0627,2436.6,2436.2,4.10461]
[1728462368151,1.8127597,2436.6,2436.2,4.10461]
[1728462369655,1.7500597,2436.4,2436.1,4.10487]
[1728462370275,1.7500597,2436.4,2436.0,8.98806]
[1728462370465,1.7500597,2436.4,2436.0,8.98808]
[1728462371401,1.7500597,2436.4,2436.1,4.10488]
[1728462372237,1.7500597,2436.4,2436.0,8.98805]
[1728462372399,1.7500597,2436.4,2436.0,4.88307]
[1728462373474,0.0627,2436.3,2436.0,4.10497]
[1728462377100,1.7500597,2436.2,2435.8,4.92386]
[1728462377308,1.7500597,2436.2,2435.9,4.10516]
[1728462378089,1.7500597,2436.0,2435.8,4.92386]
[1728462378320,1.7500597,2436.0,2435.6,5.00772]
[1728462378473,1.7500597,2435.8,2435.6,5.00783]
[1728462378873,0.04491535,2435.7,2435.6,5.00783]
[1728462379075,1.7500597,2435.8,2435.6,5.00783]
[1728462379269,0.04491048,2435.7,2435.6,5.00776]
[1728462379608,0.0627,2436.0,2435.6,0.1]
[1728462379817,0.04486693,2435.7,2435.6,4.20572]
[1728462379976,1.7500597,2435.9,2435.6,4.20572]
[1728462380172,0.04504091,2435.7,2435.6,0.1]
[1728462380392,1.7500597,2435.9,2435.6,0.1]
[1728462380601,0.04499965,2435.7,2435.6,0.1]
[1728462380796,7.02917431,2435.9,2435.6,0.1]
[1728462381273,0.04504407,2435.8,2435.6,0.1]
[1728462383947,0.04492358,2435.7,2435.6,0.1]
[1728462384159,1.7500597,2435.9,2435.6,0.1]
[1728462384320,0.04492358,2435.7,2435.6,0.1]
[1728462384662,2.75234667,2435.9,2435.6,0.1]
[1728462384814,0.04489745,2435.7,2435.6,0.1]
[1728462385152,1.7500597,2435.9,2435.6,0.1]
[1728462385311,0.04490472,2435.7,2435.6,0.1]
[1728462385511,1.7500597,2435.9,2435.6,0.1]
[1728462385742,0.04490472,2435.7,2435.6,0.1]
[1728462385952,1.7500597,2435.9,2435.6,0.1]
[1728462386165,0.04486988,2435.7,2435.6,0.1]
[1728462386324,1.8127597,2436.0,2435.6,0.1]
[1728462386525,0.04486502,2435.7,2435.6,4.20575]
[1728462386822,0.04486502,2435.7,2435.6,5.04835966]
[1728462387170,1.8127597,2436.0,2435.6,5.04835966]
[1728462387333,0.04486502,2435.7,2435.6,5.04835966]
[1728462387537,1.8127597,2436.0,2435.6,5.04835966]
[1728462387787,0.04478009,2435.7,2435.6,5.04835966]
[1728462387928,2.57610331,2436.0,2435.6,5.04835966]
[1728462387929,1.8127597,2436.0,2435.6,5.04835966]
[1728462388130,0.04478009,2435.7,2435.6,5.04835966]
[1728462388338,1.8127597,2436.0,2435.6,5.04835966]
[1728462388965,0.04486894,2435.9,2435.8,4.10541]
[1728462389335,1.7500597,2436.2,2435.8,8.21082]
[1728462389647,1.7500597,2436.2,2435.8,8.21074]
[1728462389853,1.7500597,2436.2,2435.8,4.10533]
[1728462390163,0.04494807,2436.1,2435.8,4.10533]
[1728462390535,0.04494807,2436.1,2435.9,4.94406124]
[1728462390863,7.48,2436.4,2436.0,4.10509]
[1728462391067,7.48,2436.4,2436.0,4.1871829]
[1728462391559,9.2300597,2436.4,2436.0,4.1871829]
[1728462392130,9.2300597,2436.4,2436.1,4.10491]
[1728462392332,9.2300597,2436.4,2436.1,8.20975]
[1728462392333,7.48,2436.4,2436.1,8.20975]
[1728462392648,7.48,2436.4,2436.1,4.10484]
[1728462393064,7.48,2436.4,2436.1,8.20965]
[1728462393368,7.48,2436.4,2436.1,4.10481]
[1728462393599,0.04356836,2436.3,2436.1,4.10481]
[1728462394045,5.9168397,2436.6,2436.1,4.10481]
[1728462394252,7.60503642,2436.6,2436.1,4.10481]
[1728462394473,0.04365717,2436.5,2436.1,4.10481]
[1728462395281,0.04365717,2436.5,2436.2,0.88239046]
[1728462395489,1.7500597,2436.8,2436.4,4.10441]
[1728462395641,1.7500597,2436.8,2436.4,5.89591736]
[1728462395840,1.7500597,2436.8,2436.4,4.98678831]
[1728462396478,7.5427,2437.0,2436.6,4.10399]
[1728462396776,1.8127597,2437.0,2436.6,4.10399]
[1728462398548,0.0627,2437.0,2436.6,4.10399]
[1728462399282,5.8536397,2436.9,2436.4,9.00891]
[1728462399837,5.8536397,2436.9,2436.4,4.90458]
[1728462400479,5.8536397,2436.9,2436.4,9.00891]
[1728462400683,5.8536397,2436.9,2436.4,10.209801]
[1728462402073,5.8536397,2436.9,2436.5,4.10423]
[1728462403078,1.7500597,2436.9,2436.5,4.10423]
[1728462403892,1.7500597,2436.9,2436.6,4.10407]
[1728462404539,1.7500597,2436.9,2436.6,4.10397]
[1728462404736,0.0627,2437.0,2436.6,4.72269361]
[1728462404951,0.0627,2437.0,2436.7,4.10388]
[1728462405392,5.8533797,2437.1,2436.7,4.10388]
[1728462405594,1.7500597,2437.1,2436.7,0.90596978]
[1728462405751,1.7500597,2437.1,2436.8,4.10371]
[1728462406589,0.0627,2437.2,2436.8,4.10371]
[1728462406794,1.8127597,2437.2,2436.8,4.10371]
[1728462407696,5.9158397,2437.2,2436.8,4.10371]
[1728462408620,0.04408646,2437.1,2436.7,0.90596978]
[1728462409398,0.04408646,2437.1,2436.7,5.00986978]
[1728462411355,0.04408646,2437.1,2436.7,5.92124776]
[1728462412437,4.14733646,2437.1,2436.7,1.73527798]
[1728462412593,1.7500597,2437.0,2436.7,0.8239]
[1728462413085,0.04400013,2436.9,2436.7,0.8239]
[1728462413693,0.04400013,2436.9,2436.5,0.8322]
[1728462413871,0.10670013,2436.9,2436.5,0.8322]
[1728462414057,4.21031013,2436.9,2436.5,0.8322]
[1728462415167,4.21031013,2436.9,2436.5,1.46676267]
[1728462418490,4.21031013,2436.9,2436.5,0.8322]
[1728462419320,5.8538197,2436.8,2436.4,4.10427]
[1728462419519,0.04405493,2436.7,2436.4,4.10427]
[1728462419723,5.8538197,2436.8,2436.3,0.8294]
[1728462420026,0.04405493,2436.7,2436.4,4.10438]
[1728462420228,0.04405493,2436.7,2436.3,3.8294]
[1728462420428,5.8538197,2436.8,2436.3,8.01605131]
[1728462420587,0.0440081,2436.6,2436.3,8.01605131]
[1728462420791,0.0440525,2436.7,2436.3,8.01605131]
[1728462420987,5.8538197,2436.8,2436.3,8.01605131]
[1728462420988,0.04396371,2436.5,2436.3,8.01605131]
[1728462421325,5.8538197,2436.8,2436.2,4.10475]
[1728462421326,0.04391687,2436.4,2436.2,4.10475]
[1728462421568,1.7500597,2436.6,2436.1,1.213278]
[1728462421825,5.8544697,2436.4,2435.9,4.90805]
[1728462422011,1.7500597,2436.4,2436.0,4.10507]
[1728462422219,0.04386274,2436.3,2435.9,5.318554]
[1728462422535,5.9170097,2436.5,2436.0,4.6369354]
[1728462422823,0.04387551,2436.4,2436.0,4.6369354]
[1728462424101,0.04387551,2436.4,2436.1,4.1869915]
[1728462424430,0.04387551,2436.4,2436.2,5.37723469]
[1728462424806,4.16677,2436.7,2436.2,5.45932308]
[1728462425003,0.0437835,2436.3,2436.2,4.90535]
[1728462425324,4.16677,2436.7,2436.3,4.10457]
[1728462425523,0.0627,2436.7,2436.3,4.10457]
[1728462425728,0.0627,2436.7,2436.4,4.10439]
[1728462425944,4.10368,2436.9,2436.4,0.08208234]
[1728462425945,0.0627,2436.9,2436.4,0.08208234]
[1728462426093,0.0627,2437.2,2436.9,4.10356]
[1728462426435,0.0627,2437.2,2437.0,0.410356]
[1728462426632,0.0627,2437.2,2436.9,4.18562368]
[1728462428392,1.8127597,2437.4,2436.9,4.18562368]
[1728462428593,1.8127597,2437.4,2436.9,0.08206368]
[1728462428897,1.8127597,2437.6,2436.9,0.08206368]
[1728462429210,3.01186801,2437.8,2437.4,4.1027]
[1728462429420,3.07456801,2437.8,2437.4,4.1027]
[1728462429751,1.8127597,2437.8,2437.4,4.1027]
[1728462430430,0.0627,2437.8,2437.4,4.1027]
[1728462430631,0.0627,2437.8,2437.4,4.10263]
[1728462431834,4.16477,2437.8,2437.3,0.08204703]
[1728462432146,5.30760042,2437.7,2437.2,4.10293]
[1728462432305,4.10241,2437.6,2437.1,0.7539]
[1728462432501,4.10241,2437.6,2437.1,0.83595251]
[1728462433446,4.10241,2437.6,2437.1,0.08205251]
[1728462434021,4.10241,2437.6,2437.1,4.18528251]
[1728462434352,4.10241,2437.6,2437.0,4.10329]
[1728462434353,0.0627,2437.4,2436.9,3.8305]
[1728462434526,0.0627,2437.4,2437.0,4.18536649]
[1728462435965,0.0627,2437.4,2437.0,4.10331]
[1728462436453,0.0627,2437.4,2437.0,4.18536651]
[1728462436752,0.0627,2437.4,2437.0,5.13562116]
[1728462436955,0.0627,2437.4,2437.0,5.05356465]
[1728462439027,7.88975419,2437.3,2436.8,4.10363]
[1728462439288,0.04295506,2437.1,2436.8,4.10363]
[1728462439569,0.04291068,2437.0,2436.6,4.87118]
[1728462439763,0.0627,2437.0,2436.6,4.87115]
[1728462440119,0.0428663,2436.9,2436.6,4.87115]
[1728462440519,0.0428663,2436.9,2436.5,4.10421]
[1728462440720,0.0428663,2436.9,2436.5,4.18628478]
[1728462441869,0.0428663,2436.9,2436.5,0.08207478]
[1728462442172,0.0428663,2436.9,2436.6,4.10404]
[1728462442521,0.0428663,2436.9,2436.7,4.18584472]
[1728462443014,0.04283297,2436.8,2436.7,4.18584472]
[1728462443286,0.0627,2437.1,2436.7,4.18584472]
[1728462443449,0.04280857,2436.8,2436.7,4.18584472]
[1728462443653,0.0627,2437.1,2436.7,4.18584472]
[1728462444168,0.04289734,2437.0,2436.7,4.18584472]
[1728462446974,0.04289734,2437.0,2436.8,4.1037]
[1728462447176,0.04289734,2437.0,2436.7,4.10377]
[1728462447511,0.04289734,2437.0,2436.7,4.18583847]
[1728462448003,0.04289734,2437.0,2436.7,4.10377]
[1728462448298,0.04289734,2437.0,2436.5,4.10414]
[1728462448488,0.04289734,2437.0,2436.6,4.10404]
[1728462452509,4.14634734,2437.0,2436.5,8.20829]
[1728462452701,0.04289734,2437.0,2436.6,4.10397]
[1728462452903,0.04289734,2437.0,2436.7,4.10376]
[1728462453268,0.04289734,2437.0,2436.7,8.20754]
[1728462453502,0.04289734,2437.0,2436.7,9.03650138]
[1728462453850,0.04289734,2437.0,2436.8,4.96646839]
[1728462454195,4.1657,2437.3,2436.8,4.96646839]
[1728462454398,0.04305539,2437.2,2436.8,4.96646839]
[1728462454592,4.1657,2437.3,2436.8,4.96646839]
[1728462454788,0.04305539,2437.2,2436.8,5.95638737]
[1728462454992,4.1657,2437.3,2436.8,5.95638737]
[1728462455208,0.04305539,2437.2,2436.8,5.95638737]
[1728462455426,4.1657,2437.3,2436.8,5.95638737]
[1728462455658,0.04301101,2437.1,2436.8,5.95638737]
[1728462455837,0.04305539,2437.2,2436.8,5.95638737]
[1728462456134,0.04296664,2437.0,2436.8,5.95638737]
[1728462456296,4.1657,2437.3,2436.9,1.00601474]
[1728462456492,4.10311,2437.2,2436.8,0.86276839]
[1728462456694,5.85179484,2437.2,2436.7,4.10376]
[1728462457008,0.04301101,2437.1,2436.7,4.10376]
[1728462457567,0.04301101,2437.1,2436.4,7.89743]
[1728462457568,4.10358,2436.9,2436.4,7.89743]
[1728462457733,4.10378,2436.8,2436.4,4.22031846]
[1728462457922,4.14660912,2436.8,2436.4,4.22031846]
[1728462458329,5.89529396,2436.8,2436.4,4.22031846]
[1728462458497,5.89529396,2436.8,2436.4,3.0]
[1728462458696,1.79151396,2436.8,2436.4,7.1044]
[1728462459198,5.89530396,2436.8,2436.4,3.0]
[1728462459202,5.89530396,2436.8,2436.2,7.90134]
[1728462459393,5.89530396,2436.8,2436.3,1.200621]
[1728462459735,5.89530396,2436.8,2436.2,4.90134]
[1728462460045,5.89530396,2436.8,2436.3,0.08208204]
[1728462460394,4.14661912,2436.8,2436.2,4.90134]
[1728462460794,4.14543729,2436.8,2436.2,4.90134]
[1728462462368,0.0627,2436.7,2436.0,4.9312]
[1728462462469,3.85245582,2436.6,2435.9,3.0]
[1728462462730,8.20876,2436.5,2436.0,0.08209219]
[1728462462956,8.20876,2436.5,2435.9,4.10517]
[1728462463133,0.04239781,2436.4,2435.9,4.10517]
[1728462463480,0.04239781,2436.4,2436.0,0.0820922]
[1728462464915,4.14683781,2436.4,2436.0,0.0820922]
[1728462465414,0.04239781,2436.4,2436.0,0.0820922]
[1728462465616,4.10461,2436.3,2436.0,0.0820922]
[1728462466040,0.04221021,2436.2,2436.0,0.0820922]
[1728462466355,0.04221021,2436.2,2435.8,0.8262]
[1728462466562,8.27199,2436.3,2435.9,0.38262]
[1728462466717,0.04216579,2436.1,2435.8,5.0137073]
[1728462466916,8.27199,2436.3,2435.8,5.0137073]
[1728462467257,4.16731,2436.3,2435.8,10.34097303]
[1728462467414,0.04221021,2436.2,2435.8,6.15346573]
[1728462467614,4.16731,2436.3,2435.8,6.23556303]
[1728462467857,0.04221021,2436.2,2435.9,0.91534657]
[1728462468059,0.04221021,2436.2,2435.8,5.0136273]
[1728462468277,4.16731,2436.3,2435.8,5.0136273]
[1728462468514,0.04216579,2436.1,2435.8,5.0136273]
[1728462468938,4.16731,2436.3,2435.8,5.0136273]
[1728462469035,0.04212137,2436.0,2435.8,0.9082973]
[1728462469265,4.10477,2436.2,2435.8,0.9082973]
[1728462469585,0.04207695,2435.9,2435.8,1.85076514]
[1728462469785,4.16731,2436.3,2435.8,0.8262]
[1728462469940,0.04207695,2435.9,2435.6,5.00045]
[1728462470284,4.10475,2436.2,2435.7,4.10557]
[1728462470435,0.0419179,2435.8,2435.7,4.10557]
[1728462470632,4.10475,2436.2,2435.7,5.016172]
[1728462470870,0.04175484,2435.8,2435.7,5.016172]
[1728462471167,4.16738,2436.3,2435.7,0.910602]
[1728462471368,0.04175484,2435.8,2435.6,9.1061]
[1728462471667,4.10493,2436.1,2435.6,5.00045]
[1728462472130,4.10493,2436.1,2435.7,4.10559]
[1728462472801,4.10493,2436.1,2435.6,9.10608]
[1728462472934,4.10493,2436.1,2435.7,0.500045]
[1728462473136,4.10493,2436.1,2435.7,4.605625]
[1728462473741,8.27212,2436.3,2435.7,4.605625]
[1728462474579,4.10476,2436.2,2435.7,4.605625]
[1728462475076,4.10476,2436.2,2435.8,0.9606055]
[1728462478593,4.10476,2436.2,2435.7,4.10559]
[1728462480184,4.10476,2436.2,2435.6,9.10609]
[1728462480386,4.10476,2436.2,2435.7,4.10548]
[1728462480584,8.27208,2436.3,2435.7,4.10548]
[1728462480893,8.27208,2436.3,2435.7,5.01607]
[1728462481891,4.10475,2436.2,2435.7,5.01607]
[1728462482456,5.85471663,2436.2,2435.7,5.01607]
[1728462483551,0.04186862,2436.1,2435.7,5.01607]
[1728462484294,0.04186862,2436.1,2435.7,5.01611]
[1728462484862,0.04186862,2436.1,2435.7,0.91059]
[1728462485274,0.04186862,2436.1,2435.7,5.0161]
[1728462485570,0.04186862,2436.1,2435.8,1.001652]
[1728462486605,1.81266663,2436.0,2435.6,0.1]
[1728462486795,5.91825663,2435.7,2435.6,0.1]
[1728462487196,5.95847598,2435.7,2435.6,0.1]
[1728462487432,6.96486658,2435.7,2435.6,0.1]
[1728462496271,5.21489995,2435.7,2435.6,0.1]
[1728462496498,6.96486658,2435.7,2435.6,0.1]
[1728462496703,9.96486658,2435.7,2435.6,0.1]
[1728462501217,8.21489995,2435.7,2435.6,0.1]
[1728462501708,9.96486658,2435.7,2435.6,0.1]
[1728462503334,8.21489995,2435.7,2435.6,0.1]
[1728462503713,9.96486658,2435.7,2435.6,0.1]
[1728462505603,8.21489995,2435.7,2435.6,0.1]
[1728462505820,8.95847598,2435.7,2435.6,0.1]
[1728462506544,0.04021935,2435.7,2435.6,0.1]
[1728462506708,0.04021935,2435.7,2435.6,0.8553]
[1728462506915,8.20976,2436.2,2435.6,4.20573]
[1728462507417,5.85497663,2436.1,2435.8,0.7553]
[1728462507548,1.74996663,2436.1,2435.8,0.7553]
[1728462507740,4.1051,2436.0,2435.8,0.7553]
[1728462511837,1.74996663,2436.1,2435.8,0.7553]
[1728462512040,4.10448,2436.4,2435.8,0.7553]
[1728462512248,4.10468,2436.3,2435.9,0.7688]
[1728462512749,5.85471663,2436.2,2435.9,0.7688]
[1728462513045,5.85505663,2436.0,2435.9,0.7688]
[1728462513541,5.85505663,2436.0,2435.7,0.8039]
[1728462513542,4.10542,2435.8,2435.7,0.8039]
[1728462513750,1.74996663,2435.7,2435.6,0.1]
[1728462514054,5.85555663,2435.7,2435.6,0.1]
[1728462515518,1.74996663,2435.7,2435.6,0.1]
[1728462516047,5.85555663,2435.7,2435.6,0.1]
[1728462523042,4.10544,2435.8,2435.7,0.8244]
[1728462525756,1.74996663,2435.9,2435.7,0.8244]
[1728462526471,5.85530663,2435.9,2435.7,0.8244]
[1728462528866,4.10542,2435.8,2435.6,0.1]
[1728462529246,8.211,2435.8,2435.6,0.1]
[1728462529644,4.10542,2435.8,2435.6,0.1]
[1728462538693,1.74996663,2435.9,2435.6,0.599049]